Cogmind - Beta 13 @@@ ROGUE MODE // 2024.04.02 @ 10:28:59 Player: DeluxeH30 Result: Destroyed by G-34 Mercenary with Small Laser Performance ------------- Evolutions (0) 0 Regions Visited (1) 200 Robots Destroyed (18) 90 Value Destroyed (280) 280 Prototype IDs (0) 0 Alien Tech Used (0) 0 Bonus (0) 0 TOTAL SCORE: 570 Bonus ------- None Cogmind --------- Core Integrity 0/250 Matter 300/300 Energy 250/250 System Corruption 4% Temperature Cool (6) Movement Walking (120) Location -10/Materials Parts ------- > --- POWER (1) -------- Ion Engine > --- PROPULSION (2) --- Aluminum Leg Aluminum Leg > --- UTILITY (2) ------ Small Storage Unit Utility Shielding > --- WEAPON (2) ------- Medium Laser Light Assault Rifle > --- INVENTORY (8) ---- Light Ion Engine Light Nuclear Core Flight Unit Flight Unit Structural Scanner Light Assault Rifle Peak State ------------ > --- POWER ------------ Ion Engine > --- PROPULSION ------- Aluminum Leg Aluminum Leg > --- UTILITY ---------- Small Storage Unit Utility Shielding > --- WEAPON ----------- Particle Gun Light Assault Rifle > --- INVENTORY -------- Light Ion Engine Light Nuclear Core Light Assault Rifle [Rating: 8] Favorites ----------- Power Light Ion Engine Engine Light Ion Engine Propulsion Aluminum Leg Treads Light Treads Leg Aluminum Leg Utility Small Storage Unit Storage Small Storage Unit Protection Utility Shielding Weapon Light Assault Rifle Energy Gun Particle Gun Ballistic Gun Light Assault Rifle Build | -11 -10 ------- Run | Yrd Mat Slots Evolved . | . . Power . | . . Propulsion . | . . Utility . | . . Weapon . | . . Parts Attached 22 | 9 13 Power 5 | 1 4 Engine 5 | 1 4 Core . | . . Reactor . | . . Propulsion 7 | 4 3 Treads 2 | 2 . Leg 5 | 2 3 Wheel . | . . Hover . | . . Flight . | . . Utility 2 | 1 1 Device . | . . Storage 1 | 1 . Processor . | . . Hackware . | . . Protection 1 | . 1 Artifact . | . . Weapon 8 | 3 5 Energy Gun 4 | 2 2 Energy Cannon . | . . Ballistic Gun 4 | 1 3 Ballistic Cannon . | . . Launcher . | . . Special Weapon . | . . Impact Weapon . | . . Slashing Weapon . | . . Piercing Weapon . | . . Special Melee Weapon . | . . Unidentified Prototypes . | . . Parts Lost 6 | . 6 Power 2 | . 2 Propulsion 2 | . 2 Utility . | . . Weapon 2 | . 2 Highest Loss Streak 6 | . 6 To Critical Strikes . | . . Average Slot Usage (%) 90 | . 90 Engine 13 | . 13 Leg 22 | . 22 Storage 14 | . 14 Protection 11 | . 11 Energy Gun 8 | . 8 Ballistic Gun 18 | . 18 Naked Turns . | . . Heaviest Build 15 | 12 15 Greatest Support 20 | 20 20 Greatest Overweight (x) 4 | 2 4 Average Overweight (x) . | . . Largest Inventory Capacity 8 | 8 8 Average Capacity 7 | 7 8 Most Carried 6 | 5 6 Average Carried 3 | 2 3 Final Capacity 8 | 8 8 Final Carried 6 | 4 6 Class Distribution -------------------- 100% | Mutant Dominant Class ---------------- Mutant | -10/Materials Resources | -11 -10 ----------- Run | Yrd Mat Matter Collected 507 | 300 207 Remotely . | . . Salvage Created 712 | 147 565 Parts 33 | 3 30 Haulers Intercepted . | . . Recyclers Shooed 5 | 1 4 Parts Field Recycled . | . . Retrieved Matter . | . . Parts Self-Destructed . | . . Prevented . | . . Kills | -11 -10 ------- Run | Yrd Mat Combat Hostiles Destroyed 7 | . 7 Guns 7 | . 7 Classes Destroyed 6 | 3 3 Worker 4 | 2 2 Tunneler 1 | 1 . Recycler 5 | 1 4 Watcher 1 | . 1 Swarmer 2 | . 2 Grunt 5 | . 5 Best Kill Streak 3 | 2 3 Combat Bots Only 3 | . 3 Max Kills in Single Turn 1 | 1 1 Gunslinging . | . . Exploded . | . . Melee . | . . Uniques/NPCs Destroyed . | . . Combat | -11 -10 -------- Run | Yrd Mat Hostile Shots Fired 111 | . 111 Missed 25 | . 25 Damage Taken 996 | . 996 Core 254 | . 254 Absorbed by Shields . | . . Redirected to Shielding 26 | . 26 Core Remaining (%) 100 | 100 . Volleys Fired 84 | 12 72 Largest 2 | 2 2 Hottest 100 | 100 85 Shots Fired 163 | 24 139 Gun 163 | 24 139 Cannon . | . . Launcher . | . . Special . | . . Kinetic 109 | 10 99 Thermal 54 | 14 40 Explosive . | . . Electromagnetic . | . . Robot Hit Streak 18 | 3 18 Robot Miss Streak 4 | 2 4 Penetration Max . | . . Secondary Targets 3 | . 3 Max Gunslinging Chain 1 | . 1 Shots Hit Robots 85 | 15 70 Core Hits 32 | 6 26 Critical Kills . | . . Critical Parts Destroyed 1 | . 1 Critical Strikes 5 | 4 1 Burn 4 | 4 . Destroy 1 | . 1 Melee Attacks . | . . Impact . | . . Slashing . | . . Piercing . | . . Sneak Attacks . | . . Combat Hostiles . | . . Follow-up Attacks . | . . Damage Inflicted 872 | 167 705 Guns 872 | 167 705 Cannons . | . . Explosions . | . . Melee . | . . Ramming . | . . Kinetic 543 | 54 489 Thermal 329 | 113 216 Explosive . | . . Electromagnetic . | . . Impact . | . . Slashing . | . . Piercing . | . . Highest Corruption 4 | . 4 Average Corruption 3 | . 3 Corruption Purged . | . . Corruption Blocked . | . . Effects 5 | . 5 Message Errors 1 | . 1 Matter Fused 1 | . 1 Heat Flow Errors 1 | . 1 Energy Discharges 1 | . 1 Data Loss (minor) 1 | . 1 Overload Shots . | . . Overflow Damage . | . . Projectiles . | . . Explosions . | . . Melee . | . . Knockbacks . | . . Impact . | . . Kinetic . | . . Secondary . | . . Self-Inflicted Damage 39 | . 39 Shots 1 | . 1 Rammed . | . . Targets Rammed . | . . Kicked . | . . Crushed . | . . Highest Temperature 198 | 50 198 Average Temperature 54 | 22 60 Received Heat Transfer 498 | . 498 Siege Activations . | . . Robots Corrupted . | . . Combat Hostiles . | . . Parts Fried . | . . Impact Corruptions . | . . Robots Melted . | . . Combat Hostiles . | . . Parts Melted 2 | 2 . Heat Transferred 1147 | 629 518 Parts Sabotaged . | . . Parts Stolen . | . . Parts Stripped . | . . Power Chain Reactions . | . . Alert | -11 -10 ------- Run | Yrd Mat Peak Influence 190 | 20 190 Initial 13 | . 13 Average 47 | 6 59 Maximum Alert Level . | . . Low Security (%) 100 | 100 100 Level 1 . | . . Level 2 . | . . Level 3 . | . . Level 4 . | . . Level 5 . | . . High Security . | . . Max Security . | . . Squads Dispatched 3 | . 3 Investigation . | . . Extermination . | . . Reinforcement 3 | . 3 Assault . | . . Garrison . | . . Intercept . | . . Searches Triggered . | . . Construction Impeded . | . . Haulers Reinforced . | . . Active Scanning Responses . | . . Cargo Convoy Interrupts . | . . Stealth | -11 -10 --------- Run | Yrd Mat Distress Signals 1 | . 1 Communications Jammed . | . . Distress Signals . | . . Times Spotted 20 | . 20 Peak Tracking Total 4 | . 4 Tactical Retreats . | . . Traps | -11 -10 ------- Run | Yrd Mat Traps Triggered 3 | . 3 Indirectly . | . . Trap Hack Attempts . | . . Triggered . | . . Disarmed . | . . Reprogrammed . | . . Reused . | . . Traps Extracted . | . . Installed . | . . Triggered . | . . Machines | -11 -10 ---------- Run | Yrd Mat Machines Disabled 3 | . 3 Max in Single Turn 2 | . 2 Machines Repaired . | . . Machines Dismantled . | . . Machines Sabotaged . | . . Overloaded Fab Kills . | . . Hacking | -11 -10 --------- Run | Yrd Mat Machines Accessed 4 | . 4 Terminals 3 | . 3 Fabricators . | . . Repair Stations . | . . Recycling Units 1 | . 1 Scanalyzers . | . . Garrison Access . | . . Total Hacks 9 | . 9 Successful 4 | . 4 Failed 5 | . 5 Catastrophic . | . . Database Lockouts . | . . Manual . | . . Terminals 6 | . 6 Fabricators . | . . Repair Stations . | . . Recycling Units 3 | . 3 Scanalyzers . | . . Garrison Access . | . . Terminal Hacks 3 | . 3 Patrol Status 1 | . 1 Hauler Manifests 1 | . 1 Registered Components 1 | . 1 Fabricator Hacks . | . . Repair Station Hacks . | . . Recycling Unit Hacks 1 | . 1 Retrieve Components 1 | . 1 Scanalyzer . | . . Garrison Access Hacks . | . . Unauthorized Hacks . | . . Terminals . | . . Fabricators . | . . Repair Stations . | . . Recycling Units . | . . Scanalyzers . | . . Garrison Access . | . . Data Cores Recovered . | . . Used . | . . Hacking Detections 3 | . 3 Full Trace Events 2 | . 2 Feedback Events . | . . Feedback Blocked . | . . Robot Schematics Acquired . | . . Robots Built . | . . Authchips . | . . Time . | . . Total Robot Build Rating . | . . Part Schematics Acquired . | . . Parts Built . | . . Authchips . | . . Time . | . . Total Part Build Rating . | . . Parts Repaired . | . . Time . | . . Parts Recycled . | . . Recycled Matter . | . . Retrieved Matter . | . . Retrieved Components 9 | . 9 Parts Scanalyzed . | . . Part Schematics Acquired . | . . Parts Damaged . | . . Bothacking | -11 -10 ------------ Run | Yrd Mat Used RIF Installer . | . . Robots Hacked . | . . Non-combat . | . . Combat . | . . Robot Hacks Applied . | . . Relay Couplers Released . | . . Fabnet Peak Effective % . | . . Robots Rewired . | . . Allies Hacked . | . . Hacks Repelled . | . . Allies | -11 -10 -------- Run | Yrd Mat Total Allies . | . . Largest Group . | . . Highest-Rated Group . | . . Highest-Rated Ally . | . . Total Orders . | . . Ally Attacks . | . . Total Damage . | . . Kills . | . . Allies Corrupted . | . . Allies Melted . | . . Intel | -11 -10 ------- Run | Yrd Mat Robot Analysis Total . | . . Derelict Logs Recovered . | . . Drone Launches . | . . Drone Recoveries . | . . Exploration | -11 -10 ------------- Run | Yrd Mat Turns Passed 702 | 155 547 Spaces Moved 305 | 54 251 Core 21 | 10 11 Treads 4 | 4 . Legs 280 | 40 240 Wheels . | . . Hover . | . . Flight . | . . Fastest Speed 50 | 50 120 Average Speed 125 | 117 127 Slowest Speed 250 | 190 250 Overloaded Moves . | . . Propulsion Burnouts . | . . Robots Hopped . | . . Cave-ins Triggered . | . . Exploration Rate (%) 25 | 4 46 Regions Visited 1 Branch Regions . Pre-discovered Areas . | . . Known Exits Taken . | . . Unknown Exits Taken 1 | 1 . Scrap Searched . | . . Spaces Dug . | . . Terrain Destroyed 42 | . 42 Melee . | . . Projectile . | . . AOE 42 | . 42 Terrain Rammed . | . . Walls Destroyed . | . . Machines Disabled . | . . Actions | -11 -10 --------- Run | Yrd Mat Total 484 | 124 360 Wait 37 | 36 1 Move 304 | 53 251 Hop . | . . Pick Up 28 | 12 16 Fast Attach . | . . Attach 16 | 8 8 Detach . | . . Swap 6 | 1 5 Drop 9 | 2 7 Fire 84 | 12 72 Melee . | . . Ram . | . . Kick . | . . Crush . | . . Escape Stasis . | . . Rewire . | . . Trap . | . . Miscellaneous . | . . Route ------- -11/Scrapyard -10/Materials (discovered 3 exits: [*Mat] / [*Min x2]) History --------- Turn | Location | Event 10 | -11/Scrapyard | Discovered new exit (range 15) 156 | -11/Scrapyard | Entered Materials 296 | -10/Materials | Discovered new exit (range 11) 313 | -10/Materials | Build established: Mutant 351 | -10/Materials | Discovered new exit (range 13) 358 | -10/Materials | Core integrity fell below 50% 372 | -10/Materials | Core integrity fell below 20% 408 | -10/Materials | Lost 6 parts (2p2n2w) 569 | -10/Materials | Discovered new exit (range 9) 703 | -10/Materials | Destroyed by G-34 Mercenary with Small Laser Last Messages --------------- 00673_ R-06 Scavenger inserts Ion Engine into recycling unit. 00673_ ALERT: Hostiles spotted, dispatching reinforcements to Terminal M005. 00676_ R-06 Scavenger inserts Lgt. Ion Engine into recycling unit. 00676_ K-01 Serf collects debris. 00678_ R-06 Scavenger destroyed. 00681_ K-01 Serf collects debris. 00682_ Acquired Ion Engine. 00684_ K-01 Serf collects debris. 00684_ Dropped Ion Engine. 00688_ K-01 Serf collects debris. 00688_ Acquired Med. Laser. 00691_ Dropped Particle Gun. 00691_ K-01 Serf collects debris. 00693_ Acquired Lgt. Ion Engine. 00695_ Acquired Flight Unit. 00695_ K-01 Serf collects debris. 00696_ Acquired 36 matter. 00698_ K-01 Serf collects debris. 00701_ Acquired Flight Unit. Map ----- +----------------------------------------------------+ | ######+########## #????????????????????? | | ^^ ????????????????????? | | *% != ????????????????????? | | * %[ ^ ????????????????????? | | %% #####+######## #????????????????????? | | #?????????????????#?????????????????????? | | #???????????????????????????????????????? | | #???????????????????????????????????????? | | #???????????????????????????????????????? | | #???????????????????????????????????????? | | #???????????????????????????????????????? | | #???????????????????????????????????????? | | #???????????????????????????????????????? | | #??????????????????????????#????????????? | | #????????????????????????? +????????????? | | #????????????????????????? #????????????? | | #??????######???????????? #????????????? | | #??????# #???????????? #????????????? | | #??????#"" #???????????? #????????????? | | #??????#"T #??????????? #????????????? | | +#+#??????#"" #??????????? g #????????????? | | ??????????# #???####+###g #????????????? | | ??????????# ##### t#????????????? | | ??????????#* + !! #????????????? | | ??????????# #####[!= !! #????????????? | | ??######### #?#""![%[%@ #????????????? | | ### ##+###?#"Y=!k %* #????????????? | | = #?#""![ =%[ #????????????? | | %<=%* #?###!* = #????????????? | | = #???#! """ #????????????? | | ### ## #???# """ #????????????? | | ??# "!"! ## #???# """ #????????????? | | ??#""!"!""## #???# #????????????? | | ??########## #???# #????????????? | | ???????????# #???# """ #????????????? | | ??????????? ???# """ ???????????? | | ??????????? ??? """ ??????????? | | ??????????? ?? ? ??????????? | | ??????????? ? ???? ??????????? | | ??????????? ##+##### ???????????????? | | ???????????## ###??????? ???????????????? | | ????????????? #????????? ??????????????? | | ????????????? ??????????? ???????????????? | | ???????????????????????????????????????????? | | ???????????????????????????????????????????? | | ???????????????????????????????????????????? | | ???????????????????????????????????????????? | | ???????????????????????????????????????????? | | ???????????????????????????????????????????? | | ???????????????????????????????????????????? | +----------------------------------------------------+ Best States ------------- Heat Dissipation 25 Energy Generation 10 Energy Capacity 250 Matter Stores 300 Matter Capacity 300 Sight Range 16 Terrain Scan Density 10 Utility Shielding 33 Evasion (%) 55 Recoil Reduction 1 Item Schematics ----------------- None Robot Schematics ------------------ None Fabricated ------------ Nothing Alien Tech Used ----------------- None Achievements -------------- None Challenges ------------ None Game ------ Seed LayeredNovaAutogun Manual? 0 Play Time 00:06:48 Cumulative 13.0 hours Start 2024.04.02 @ 10:22:21 End 2024.04.02 @ 10:28:59 Sessions 1 Manual Loads 0 Difficulty Rogue Special Mode None Game No. 20 Rogue 20 Adventurer 0 Explorer 0 Win Type - Total 0 Types 0/0/0/0/0/0/0/0/0 Lore% 9 Gallery% 18 Achievement% 14 Wizard Run 0 Options --------- Layout 0 ASCII 0 Keyboard 0 Movement Mouse Keybinds 0 Fullscreen 2 Font 24/Smallcaps Map View 76x50 Zoom Use 0% Tactical HUD 1 Map Filters NONE Filters NONE Steam 1 RUN: c7ac050c-24ea-4f98-922b-532a9f1ab836